bitfinex/quotes_SOLUSD_20220210
["timestamp","ask_amount","ask_price","bid_price","bid_amount"]
[1644519544216,0.25,109.96,109.91,39.80721493]
[1644519544416,0.25,109.98,109.91,50.84721493]
[1644519544619,0.25,109.98,109.91,52.5392512]
[1644519544817,13.6449,110.0,109.91,52.5392512]
[1644519545217,43.1414331,109.99,109.91,52.5392512]
[1644519545917,43.3914331,109.99,109.91,52.5392512]
[1644519546719,57.0373331,109.99,109.91,52.5392512]
[1644519547419,57.0373331,109.99,109.91,52.2892512]
[1644519547617,57.0373331,109.99,109.91,39.80721493]
[1644519548921,63.0373331,109.99,109.91,39.80721493]
[1644519551725,63.0373331,109.99,109.87,27.44848085]
[1644519551925,110.1423331,109.99,109.89,6.0]
[1644519552123,110.1423331,109.99,109.88,10.79]
[1644519552324,110.1423331,109.99,109.88,16.79]
[1644519552825,110.1423331,109.99,109.89,45.59256138]
[1644519553227,110.1423331,109.99,109.89,51.59256138]
[1644519555626,110.1423331,109.99,109.89,64.32459765]
[1644519556927,109.8923331,109.99,109.89,64.32459765]
[1644519557128,109.8923331,109.99,109.89,77.97179765]
[1644519557327,96.2464331,109.99,109.89,79.26714223]
[1644519558333,96.4964331,109.99,109.89,100.54079765]
[1644519558930,96.2464331,109.99,109.89,100.54079765]
[1644519559333,96.2464331,109.99,109.89,101.83614223]
[1644519560434,96.4964331,109.99,109.89,101.83614223]
[1644519560838,53.355,109.99,109.89,101.83614223]
[1644519561034,6.25,109.99,109.89,101.83614223]
[1644519561235,0.25,109.99,109.89,101.83614223]
[1644519561432,0.25,109.99,109.9,111.50084868]
[1644519561634,0.25,110.01,109.92,13.6423]
[1644519561835,39.87569945,110.01,109.93,57.60258419]
[1644519562334,40.12569945,110.01,109.93,57.60258419]
[1644519562536,62.93929945,110.01,109.93,57.60258419]
[1644519562738,62.93929945,110.01,109.93,10.79]
[1644519562938,62.93929945,110.01,109.92,23.0301]
[1644519563137,62.93929945,110.01,109.91,23.2342]
[1644519563540,76.58269945,110.01,109.91,23.2342]
[1644519563739,82.58269945,110.01,109.92,43.9105948]
[1644519564538,82.58269945,110.01,109.92,54.7005948]
[1644519565141,82.33269945,110.01,109.92,54.7005948]
[1644519565339,82.33269945,110.01,109.92,54.9505948]
[1644519565542,42.457,110.01,109.92,10.79]
[1644519566342,42.707,110.01,109.92,33.762]
[1644519567043,28.8136,110.01,109.92,49.34783627]
[1644519567242,28.8136,110.01,109.92,55.34783627]
[1644519567843,6.0,110.01,109.92,56.64318085]
[1644519568048,14.93374458,110.05,109.93,1.29534458]
[1644519568243,0.25,110.05,109.96,13.6379]
[1644519568444,0.25,110.05,109.97,10.79]
[1644519568643,0.25,110.05,109.97,35.0171]
[1644519569445,1.54534458,110.06,109.97,35.0171]
[1644519570243,15.18264458,110.06,109.97,35.0171]
[1644519570951,1.29534458,110.06,109.97,35.0171]
[1644519571145,25.45324458,110.07,109.97,42.95913627]
[1644519571346,1.29534458,110.07,109.97,56.59343627]
[1644519571546,1.32303819,110.08,109.97,56.59343627]
[1644519572046,1.32303819,110.08,109.97,54.9014]
[1644519572347,1.57303819,110.08,109.97,54.9014]
[1644519572647,7.57303819,110.08,109.97,54.6514]
[1644519572846,21.20823819,110.08,109.97,54.6514]
[1644519573450,21.20823819,110.08,109.97,41.0171]
[1644519573846,38.6072,110.07,109.97,41.0171]
[1644519574047,24.9706,110.07,109.97,131.1571]
[1644519574249,7.32303819,110.08,109.97,132.84913627]
[1644519574447,6.02769361,110.08,109.97,56.30053627]
[1644519574648,6.02769361,110.08,109.97,54.6085]
[1644519575075,0.02769361,110.08,109.97,54.6085]
[1644519575248,13.635,110.08,109.97,54.6085]
[1644519575448,13.66269361,110.08,109.97,54.6085]
[1644519575653,13.91269361,110.08,109.97,54.6085]
[1644519576266,13.91269361,110.08,109.97,56.30053627]
[1644519576951,0.27769361,110.08,109.97,56.30053627]
[1644519577151,0.02769361,110.08,109.97,146.19053627]
[1644519577350,1.29534458,110.11,109.98,21.60721131]
[1644519577351,0.02769361,110.09,109.98,21.60721131]
[1644519577552,0.02769361,110.08,109.99,35.2715]
[1644519577753,0.02769361,110.09,110.01,13.6301]
[1644519577953,0.02769361,110.11,110.02,35.7087]
[1644519578153,113.22303819,110.12,110.02,35.7087]
[1644519578557,24.6562,110.11,110.02,35.7087]
[1644519578754,24.9062,110.11,110.02,35.9587]
[1644519579359,30.9062,110.11,110.02,35.7087]
[1644519579555,30.6562,110.11,110.02,41.7087]
[1644519579757,30.6562,110.11,110.02,41.9587]
[1644519580257,30.6562,110.11,110.02,35.9587]
[1644519580757,30.6562,110.11,110.02,35.7087]
[1644519580959,30.9062,110.11,110.02,35.7087]
[1644519581861,44.5376,110.11,110.02,35.7087]
[1644519582760,30.9062,110.11,110.02,35.7087]
[1644519582962,30.9062,110.11,110.02,41.7087]
[1644519583362,6.0,110.11,110.02,43.40073627]
[1644519583562,0.02769361,110.12,110.02,43.65073627]
[1644519583963,0.02769361,110.14,110.02,43.65073627]
[1644519584265,25.31434458,110.15,110.02,43.65073627]
[1644519584266,0.02769361,110.12,110.02,43.65073627]
[1644519584463,0.02769361,110.14,110.02,43.65073627]
[1644519584661,0.02769361,110.12,110.02,43.65073627]
[1644519584863,0.02769361,110.14,110.02,35.7087]
[1644519585065,0.02769361,110.12,110.02,10.79]
[1644519585265,0.02769361,110.12,110.0,48.5678]
[1644519585464,2.25891515,110.12,110.0,48.5678]
[1644519585666,42.35970631,110.11,110.01,42.04131321]
[1644519585866,42.3320127,110.11,110.01,42.04131321]
[1644519586067,42.60970631,110.11,110.01,42.04131321]
[1644519586468,37.3685,110.1,110.01,42.04131321]
[1644519586669,41.8201565,110.09,110.01,42.04131321]
[1644519587168,42.0701565,110.09,110.01,42.04131321]
[1644519587370,48.0701565,110.09,110.01,42.04131321]
[1644519587570,48.0701565,110.09,110.01,52.83131321]
[1644519588972,61.7041565,110.09,110.01,52.83131321]
[1644519590372,48.0701565,110.09,110.01,52.83131321]
[1644519590571,48.0701565,110.09,110.01,54.77334948]
[1644519590773,42.0701565,110.09,110.01,54.77334948]
[1644519591278,0.25,110.09,110.01,60.77334948]
[1644519591473,37.72629361,110.11,110.01,74.40414948]
[1644519591674,6.0,110.1,110.01,74.40414948]
[1644519591873,30.09479361,110.11,110.01,74.40414948]
[1644519592275,70.34103718,110.11,110.01,74.40414948]
[1644519592681,24.465,110.1,110.01,72.46211321]
[1644519592875,34.71146823,110.09,110.01,59.08131321]
[1644519593275,34.96146823,110.09,110.01,59.08131321]
[1644519593879,0.25,110.09,110.01,59.08131321]
[1644519594078,0.25,110.09,110.01,74.40434948]
[1644519594275,30.09479361,110.11,110.01,74.40434948]
[1644519594276,6.27769361,110.11,110.01,74.40434948]
[1644519594878,0.27769361,110.11,110.01,74.40434948]
[1644519595077,43.26629813,110.1,110.01,72.71231321]
[1644519595277,43.51629813,110.1,110.01,72.71231321]
[1644519595476,0.25,110.1,110.01,72.71231321]
[1644519595680,6.25,110.1,110.02,24.0033]
[1644519595877,0.25,110.1,110.03,10.79]
[1644519596178,0.02769361,110.11,110.03,16.79]
[1644519596381,6.02769361,110.13,110.03,16.79]
[1644519596578,13.6302,110.12,110.04,45.33145834]
[1644519596779,1.29534458,110.1,110.04,45.33145834]
[1644519596977,1.29534458,110.1,110.01,10.79]
[1644519597178,23.81064458,110.1,110.01,10.79]
[1644519597378,26.29186612,110.1,110.01,10.79]
[1644519597604,14.93024458,110.09,110.01,10.79]
[1644519597805,13.8849,110.09,110.01,10.79]
[1644519598003,50.22637921,110.09,110.02,46.21357271]
[1644519598404,51.52172379,110.09,110.02,46.21357271]
[1644519598805,50.22637921,110.09,110.02,46.21357271]
[1644519599008,36.59147921,110.09,110.02,57.00357271]
[1644519599508,0.25,110.09,110.02,57.00357271]
[1644519599707,0.02769361,110.11,110.02,63.25357271]
[1644519599907,0.02769361,110.13,110.03,24.7361]
[1644519600109,0.02769361,110.14,110.04,10.79]
[1644519600313,0.02769361,110.14,110.04,58.38158209]
[1644519600712,64.37424988,110.15,110.06,46.46237941]
[1644519601009,0.02769361,110.14,110.07,10.79]
[1644519601210,1.32303819,110.16,110.07,10.79]
[1644519601410,1.29534458,110.15,110.07,11.04]
[1644519601811,37.04569875,110.14,110.07,16.79]
[1644519602013,1.29534458,110.13,110.07,6.0]
[1644519602215,14.92444458,110.13,110.04,34.1277]
[1644519602412,14.92444458,110.13,110.01,10.79]
[1644519602413,1.29534458,110.11,110.01,10.79]
[1644519602812,1.32303819,110.11,110.01,10.79]
[1644519603113,39.95712229,110.1,110.02,43.26895905]
[1644519603313,40.20712229,110.1,110.03,10.79]
[1644519603511,40.20712229,110.1,110.04,42.21816463]
[1644519604117,0.25,110.1,110.04,42.21816463]
[1644519604515,15.17674458,110.11,110.03,10.79]
[1644519604724,15.17674458,110.11,110.0,25.89374458]
[1644519604918,1.29534458,110.1,110.0,35.3884]
[1644519605120,1.29534458,110.09,110.0,35.3884]
[1644519605316,1.29534458,110.1,110.0,35.3884]
[1644519605518,60.60990527,110.09,110.01,46.10891059]
[1644519605716,67.90524985,110.09,109.98,12.08534458]
[1644519605917,1.29534458,110.08,109.97,12.08534458]
[1644519606116,1.29534458,110.07,109.97,1.29534458]
[1644519606316,1.29534458,110.06,109.95,12.08534458]
[1644519606619,1.29534458,110.06,109.95,10.79]
[1644519606817,47.39039989,110.05,109.96,41.85515927]
[1644519607016,13.6416,110.03,109.96,41.85515927]
[1644519607217,60.56845356,110.03,109.96,41.85515927]
[1644519609420,1.88472496,110.0,109.96,41.85515927]
[1644519610721,2.13472496,110.0,109.96,41.85515927]
[1644519610920,1.29534458,110.06,109.97,45.0]
[1644519611118,1.29534458,110.07,109.97,55.79]
[1644519611318,1.29534458,110.07,109.97,10.79]
[1644519611520,25.06524458,110.08,109.97,10.79]
[1644519611822,23.7699,110.08,109.98,38.6671616]
[1644519612020,23.7699,110.08,109.98,49.4571616]
[1644519612021,43.21533551,110.07,109.98,49.4571616]
[1644519612421,7.32425646,110.08,109.98,55.7071616]
[1644519612627,6.0,110.08,109.99,89.89]
[1644519612824,0.02891188,110.09,110.0,10.79]
[1644519613026,0.02891188,110.11,110.01,13.6303]
[1644519613225,126.85565646,110.12,110.02,10.79]
[1644519613426,0.02891188,110.11,110.03,47.71170356]
[1644519613628,1.29534458,110.15,110.04,96.79]
[1644519613828,111.9,110.16,110.04,106.10203627]
[1644519613829,0.02929205,110.13,110.04,106.10203627]
[1644519614028,51.07799235,110.19,110.04,20.10203627]
[1644519614029,0.02929205,110.15,110.04,20.10203627]
[1644519614226,1.29534458,110.17,110.06,13.6244]
[1644519614430,1.29534458,110.17,110.06,10.79]
[1644519614431,0.02929205,110.15,110.06,10.79]
[1644519614628,47.75041421,110.16,110.07,48.14877509]
[1644519614828,53.77970626,110.16,110.07,48.14877509]
[1644519615030,1.29534458,110.15,110.07,48.14877509]
[1644519615228,1.29534458,110.15,110.04,6.0]
[1644519615229,46.14915837,110.14,110.04,6.0]
[1644519615430,49.70501654,110.14,110.02,10.79]
[1644519615629,1.29534458,110.12,109.99,10.79]
[1644519615829,1.32463663,110.11,109.99,16.79]
[1644519616029,1.32463663,110.12,109.99,10.79]
[1644519616230,0.02929205,110.1,110.0,44.27158885]
[1644519616459,61.45975043,110.11,110.01,10.79]
[1644519616653,61.70975043,110.11,110.02,37.48227646]
[1644519616853,61.68045838,110.11,110.02,48.27227646]
[1644519617258,61.68045838,110.11,110.02,37.48227646]
[1644519617657,65.2070245,110.11,110.02,37.48227646]
[1644519617855,62.97580296,110.11,110.02,37.48227646]
[1644519618056,61.68045838,110.11,110.02,37.48227646]
[1644519618656,2.23122154,110.1,109.98,0.024]
[1644519618858,13.6363,110.08,109.98,0.024]
[1644519619056,20.7853,110.08,109.98,0.024]
[1644519619257,21.0353,110.08,109.98,0.024]
[1644519619457,21.0353,110.08,109.97,0.024]
[1644519619659,41.89398906,110.07,109.97,51.76047718]
[1644519619856,42.14398906,110.07,109.98,0.024]
[1644519620066,42.14398906,110.07,109.97,51.76047718]
[1644519620257,55.78188906,110.07,109.97,51.76047718]
[1644519623461,1.32463663,110.09,109.97,51.76047718]
[1644519623663,1.32463663,110.09,109.98,1.71603627]
[1644519623865,1.32463663,110.09,109.99,10.79]
[1644519623866,0.02929205,110.09,109.99,10.79]
[1644519624065,1.32463663,110.1,109.99,12.48203627]
[1644519624263,1.32463663,110.1,110.0,1.69203627]
[1644519624464,1.32463663,110.1,110.01,57.5078681]
[1644519624663,49.01224468,110.11,110.01,57.5078681]
[1644519624866,37.11452554,110.09,110.03,35.65966902]
[1644519625262,1.32463663,110.11,110.03,35.65966902]
[1644519625465,1.32463663,110.12,110.03,35.65966902]
[1644519625763,0.02929205,110.12,110.03,43.60170529]
[1644519625963,0.02929205,110.12,110.03,43.35170529]
[1644519626167,0.02929205,110.12,110.03,43.60170529]
[1644519626366,43.93972794,110.12,110.03,54.39170529]
[1644519627064,0.27929205,110.12,110.03,54.39170529]
[1644519627266,0.27929205,110.12,110.03,68.01980529]
[1644519627469,0.25,110.12,110.03,68.01980529]
[1644519627664,0.02929205,110.13,110.03,68.01980529]
[1644519627864,0.02929205,110.14,110.03,68.01980529]
[1644519628164,0.02929205,110.13,110.06,103.5106]
[1644519628365,0.02929205,110.14,110.07,48.93179342]
[1644519628564,0.02929205,110.15,110.07,50.62382969]
[1644519628766,1.29534458,110.15,110.07,56.87382969]
[1644519628966,1.29534458,110.15,110.07,55.18179342]
[1644519629769,1.54534458,110.15,110.07,55.18179342]
[1644519630470,0.25,110.15,110.07,55.18179342]
[1644519630671,46.18051967,110.15,110.07,54.93179342]
[1644519631074,47.72586425,110.15,110.07,54.93179342]
[1644519631477,46.43051967,110.15,110.07,54.93179342]
[1644519632583,46.43051967,110.15,110.07,55.18179342]
[1644519632777,0.25,110.15,110.07,55.18179342]
[1644519633276,7.32463663,110.16,110.07,55.18179342]
[1644519633277,1.57463663,110.16,110.07,55.18179342]
[1644519633478,7.54534458,110.16,110.07,55.18179342]
[1644519633877,37.07183382,110.15,110.07,48.93179342]
[1644519634077,37.07183382,110.15,110.07,38.14179342]
[1644519634279,37.32183382,110.15,110.07,38.14179342]
[1644519635183,50.94873382,110.15,110.07,38.14179342]
[1644519635778,56.94873382,110.15,110.07,38.14179342]
[1644519636376,0.02929205,110.16,110.08,10.79]
[1644519636577,0.02929205,110.17,110.08,10.79]
[1644519636777,0.02929205,110.18,110.08,17.04]
[1644519636979,6.02929205,110.18,110.08,17.04]
[1644519637180,0.02929205,110.18,110.08,17.04]
[1644519637382,60.46856097,110.18,110.09,38.11482972]
[1644519637581,54.46856097,110.18,110.09,38.11482972]
[1644519637779,60.46856097,110.18,110.09,38.11482972]
[1644519638379,60.46856097,110.18,110.09,44.36482972]
[1644519638578,60.46856097,110.18,110.09,38.11482972]
[1644519638778,54.46856097,110.18,110.07,10.79]
[1644519639077,13.633,110.13,110.03,10.79]
[1644519639281,13.66229205,110.13,110.01,1.29534458]
[1644519639478,13.91229205,110.13,110.0,58.38994458]
[1644519639882,34.69794491,110.12,110.01,43.56092984]
[1644519640079,48.32934491,110.12,110.01,43.56092984]
[1644519640282,48.57934491,110.12,110.01,49.81092984]
[1644519641086,48.57934491,110.12,110.01,51.10627442]
[1644519641487,48.57934491,110.12,110.01,61.89627442]
[1644519641885,48.57934491,110.12,110.01,60.60092984]
[1644519642387,6.0,110.12,110.02,89.89]
[1644519642612,6.0,110.12,110.03,10.79]
[1644519642788,0.02929205,110.13,110.03,10.79]
[1644519643088,6.0,110.12,110.03,10.79]
[1644519643286,1.29534458,110.15,110.03,10.79]
[1644519643485,39.07676601,110.11,110.04,46.78877496]
[1644519643686,52.70866601,110.11,110.01,18.33534458]
[1644519643888,52.98795806,110.11,110.01,7.29534458]
[1644519644087,52.98795806,110.11,110.01,6.0]
[1644519644288,1.29534458,110.15,110.02,12.08534458]
[1644519644488,0.02944607,110.11,110.03,89.89]
[1644519644689,0.02944607,110.14,110.04,10.79]
[1644519644891,13.6269,110.15,110.04,12.48188048]
[1644519645089,0.02944607,110.14,110.04,18.48188048]
[1644519645393,48.72493086,110.14,110.05,39.01366794]
[1644519645590,48.69548479,110.14,110.06,10.79]
[1644519645790,48.69548479,110.14,110.07,36.07650398]
[1644519645995,68.32328479,110.14,110.07,36.07650398]
[1644519646389,68.57328479,110.14,110.02,1.69188048]
[1644519646590,69.89807544,110.14,110.03,10.79]
[1644519646790,0.02944607,110.13,110.01,10.79]
[1644519647091,13.6353,110.1,109.98,12.10934458]
[1644519647293,35.80081521,110.09,110.0,37.61676227]
[1644519647691,0.25,110.09,110.0,39.30864275]
[1644519648093,0.25,110.09,110.0,45.55864275]
[1644519648397,13.66474607,110.1,110.0,46.85398733]
[1644519648592,0.02944607,110.1,110.01,12.08534458]
[1644519648794,37.20407391,110.12,110.02,35.25187028]
[1644519648996,37.20407391,110.12,110.03,10.79]
[1644519649193,37.20407391,110.12,110.02,52.04187028]
[1644519649394,37.20407391,110.12,110.02,46.04187028]
[1644519649599,37.20407391,110.12,110.02,52.04187028]
[1644519649792,37.45407391,110.12,110.02,52.04187028]
[1644519650117,37.45407391,110.12,110.02,16.79]
[1644519650299,52.37961849,110.12,110.0,10.79]
[1644519650500,23.22254607,110.11,109.99,1.29534458]
[1644519650696,23.22254607,110.11,109.98,1.7159851]
[1644519650697,23.2071,110.1,109.98,1.31934458]
[1644519650894,10.79,110.09,109.98,1.31934458]
[1644519651097,23.0946,110.08,109.98,1.31934458]
[1644519651296,67.02503797,110.08,109.98,1.31934458]
[1644519651495,67.27503797,110.08,109.98,1.31934458]
[1644519651696,73.27503797,110.08,109.98,1.31934458]
[1644519652095,86.91423797,110.08,109.98,1.31934458]
[1644519652296,89.14545951,110.08,109.98,40.12847138]
[1644519652499,97.70423797,110.08,109.98,38.8331268]
[1644519652795,86.91423797,110.08,109.98,40.12847138]
[1644519653396,86.66423797,110.08,109.98,40.12847138]
[1644519653804,86.66423797,110.08,109.98,1.31934458]
[1644519654203,29.0946,110.08,109.98,12.10934458]
[1644519654403,6.0,110.08,110.01,1.29534458]
[1644519654606,6.0,110.08,110.02,10.79]
[1644519654804,23.23654607,110.1,110.0,12.08534458]
[1644519655209,42.26782363,110.09,110.0,12.08534458]
[1644519655409,13.6357,110.08,110.0,1.29534458]
[1644519655611,40.73880581,110.07,110.0,1.29534458]
[1644519655909,40.73880581,110.07,109.99,1.29534458]
[1644519656509,40.73880581,110.07,110.0,42.30035845]
[1644519657510,40.98880581,110.07,110.0,42.30035845]
[1644519657724,23.23654607,110.1,110.0,42.55035845]
[1644519657924,23.23654607,110.1,110.0,59.34035845]
[1644519658127,23.23654607,110.1,110.01,1.6919851]
[1644519658325,0.02944607,110.11,110.02,10.79]
[1644519658526,6.0,110.1,110.02,10.79]
[1644519658829,45.90862867,110.09,110.02,10.79]
[1644519659024,45.90862867,110.09,110.0,16.79]
[1644519659225,52.15862867,110.09,109.98,49.82674458]
[1644519659426,52.15862867,110.09,109.98,60.61674458]
[1644519659626,54.38985021,110.09,109.98,59.5714]
[1644519659825,52.15862867,110.09,109.99,47.21759071]
[1644519660026,52.15862867,110.09,110.0,10.79]
[1644519660225,52.15862867,110.09,110.01,35.49073139]
[1644519660431,51.90862867,110.09,110.01,35.49073139]
[1644519660629,65.54302867,110.09,110.01,35.49073139]
[1644519661827,65.79302867,110.09,110.01,35.49073139]
[1644519662427,68.02425021,110.09,110.01,35.49073139]
[1644519663028,68.02425021,110.09,109.98,0.024]
[1644519663231,13.6425,110.05,109.98,0.024]
[1644519663531,15.87372154,110.05,109.97,2.3819941]
[1644519663731,16.12372154,110.05,109.97,2.3819941]
[1644519663929,47.9495415,110.04,109.97,3.67733868]
[1644519664130,109.0,110.03,109.94,2.5783057]
[1644519664331,46.62194423,110.02,109.94,2.5783057]
[1644519664529,48.85316577,110.02,109.94,2.5783057]
[1644519664730,46.87194423,110.02,109.94,2.5783057]
[1644519664930,2.23122154,110.01,109.94,2.5783057]
[1644519665131,13.6486,109.99,109.93,5.17076269]
[1644519665429,34.6916207,109.98,109.92,49.55991397]
[1644519665628,34.6916207,109.98,109.92,46.98160827]
[1644519665834,34.9416207,109.98,109.92,46.98160827]
[1644519666229,48.5898207,109.98,109.91,8.818]
[1644519667032,50.82104224,109.98,109.91,8.818]
[1644519667431,54.5898207,109.98,109.91,8.818]
[1644519667832,56.82104224,109.98,109.91,8.818]
[1644519669233,56.82104224,109.98,109.87,2.5783057]
[1644519669636,67.61104224,109.98,109.85,2.5783057]
[1644519669835,24.0928,109.97,109.86,0.024]
[1644519670034,13.6584,109.94,109.86,0.024]
[1644519670234,45.94814322,109.93,109.85,2.5885296]
[1644519670434,48.17936476,109.93,109.85,2.6125296]
[1644519670637,46.19814322,109.93,109.85,0.024]
[1644519670834,46.19814322,109.93,109.84,2.5783057]
[1644519671038,46.19814322,109.93,109.84,0.024]
[1644519671237,52.19814322,109.93,109.84,47.97554141]
[1644519671437,46.19814322,109.93,109.84,47.99954141]
[1644519671636,46.19814322,109.93,109.86,37.30172159]
[1644519672036,45.94814322,109.93,109.86,37.30172159]
[1644519672839,65.60414322,109.93,109.85,0.024]
[1644519673140,65.60414322,109.93,109.85,2.5783057]
[1644519673338,65.85414322,109.93,109.86,2.5783057]
[1644519673739,65.85414322,109.93,109.85,2.6023057]
[1644519674038,65.85414322,109.93,109.85,48.26325863]
[1644519674239,65.85414322,109.93,109.86,2.58243484]
[1644519674442,65.85414322,109.93,109.87,40.04181158]
[1644519675242,65.85414322,109.93,109.85,2.6023057]
[1644519675441,65.85414322,109.93,109.85,0.024]
[1644519675641,65.85414322,109.93,109.83,5.18418889]
[1644519675842,65.85414322,109.93,109.84,0.024]
[1644519676043,112.98854322,109.93,109.82,5.18418889]
[1644519676242,112.98854322,109.93,109.83,0.024]
[1644519676442,112.98854322,109.93,109.83,41.32467159]
[1644519677241,112.98854322,109.93,109.83,0.024]
[1644519678042,112.98854322,109.93,109.81,0.024]
[1644519678242,112.98854322,109.93,109.81,37.72814872]
[1644519678442,112.98854322,109.93,109.82,0.024]
[1644519680152,112.73854322,109.93,109.82,0.024]
[1644519680342,112.73854322,109.93,109.84,37.99321324]
[1644519680542,47.1344,109.93,109.85,10.79]
[1644519680745,47.1344,109.93,109.85,18.4819851]
[1644519680941,47.1344,109.93,109.86,1.6919851]
[1644519681145,13.6536,109.95,109.87,10.79]
[1644519681542,36.3519046,109.94,109.88,44.63706172]
[1644519681743,36.6019046,109.94,109.88,44.63706172]
[1644519682242,0.25,109.94,109.88,44.63706172]
[1644519682443,13.6536,109.95,109.88,44.63706172]
[1644519682646,13.6536,109.95,109.86,1.7159851]
[1644519682842,13.6536,109.95,109.86,10.814]
[1644519683046,13.6536,109.95,109.86,0.024]
[1644519683544,60.73074391,109.95,109.86,0.024]
[1644519683746,66.98074391,109.95,109.86,10.814]
[1644519683947,66.98074391,109.95,109.87,43.47945781]
[1644519685348,6.25,109.95,109.87,43.47945781]
[1644519685552,0.25,109.95,109.87,56.21159072]
[1644519685850,45.4956,110.01,109.87,75.86249072]
[1644519686050,47.8344,110.02,109.88,0.024]
[1644519686349,41.39039895,110.01,109.9,42.79857521]
[1644519686552,41.39039895,110.01,109.91,0.024]
[1644519686749,13.6465,110.0,109.91,0.024]
[1644519686949,43.24979955,109.99,109.91,0.024]
[1644519687254,43.24979955,109.99,109.9,53.83857521]
[1644519687450,43.24979955,109.99,109.9,53.86257521]
[1644519687653,43.24979955,109.99,109.9,53.58857521]
[1644519688151,43.49979955,109.99,109.9,53.58857521]
[1644519688853,57.14769955,109.99,109.9,67.23647521]
[1644519689251,63.14769955,109.99,109.9,67.23647521]
[1644519689655,63.14769955,109.99,109.9,10.79]
[1644519689852,2.23122154,109.98,109.89,0.024]
[1644519690056,13.6527,109.96,109.88,0.024]
[1644519690352,13.9027,109.96,109.87,0.024]
[1644519690754,43.87506857,109.95,109.86,0.024]
[1644519690955,43.87506857,109.95,109.84,49.01907477]
[1644519691157,43.87506857,109.95,109.85,0.024]
[1644519691376,44.12506857,109.95,109.85,0.024]
[1644519691560,46.35629011,109.95,109.85,0.024]
[1644519691755,60.00979011,109.95,109.85,0.024]
[1644519691954,60.00979011,109.95,109.85,0.004]
[1644519692155,57.2659,109.94,109.77,46.6515]
[1644519692354,57.5159,109.94,109.8,0.024]
[1644519692553,57.5159,109.94,109.77,46.6515]
[1644519692554,98.0,109.92,109.77,46.1755]
[1644519692753,47.75467403,109.9,109.78,46.63466121]
[1644519693155,48.00467403,109.9,109.78,52.63466121]
[1644519693457,48.00467403,109.9,109.78,54.32679412]
[1644519693655,48.00467403,109.9,109.78,52.63466121]
[1644519693855,13.6635,109.89,109.78,66.29726121]
[1644519694054,40.78209302,109.88,109.78,66.29726121]
[1644519694456,41.03209302,109.88,109.78,66.29726121]
[1644519694655,41.03209302,109.88,109.79,1.69213291]
[1644519694857,41.03209302,109.88,109.8,39.64337181]
[1644519695460,40.78209302,109.88,109.8,40.83550472]
[1644519696060,40.78209302,109.88,109.8,39.14337181]
[1644519696563,45.5321,109.92,109.8,54.49560472]
[1644519696764,45.7821,109.92,109.8,58.80347181]
[1644519697061,10.79,109.93,109.81,1.69213291]
[1644519697262,10.79,109.94,109.81,6.25]
[1644519697461,150.0503,109.96,109.82,10.79]
[1644519697662,13.6545,109.94,109.83,60.29016121]
[1644519697862,41.1217399,109.93,109.83,72.77229412]
[1644519698063,41.1217399,109.93,109.83,59.11679412]
[1644519698267,41.3717399,109.93,109.83,59.11679412]
[1644519698887,13.6581,109.91,109.83,46.63466121]
[1644519699087,13.6581,109.91,109.81,24.144]
[1644519699291,13.9081,109.91,109.81,24.144]
[1644519699489,13.9081,109.91,109.81,24.394]
[1644519699689,19.9081,109.91,109.81,26.08613291]
[1644519700188,53.55105039,109.9,109.82,34.96005621]
[1644519700389,53.80105039,109.9,109.82,34.96005621]
[1644519700590,53.80105039,109.9,109.81,24.144]
[1644519701192,53.80105039,109.9,109.81,37.8035]
[1644519701590,53.80105039,109.9,109.82,34.76628537]
[1644519701990,53.55105039,109.9,109.82,34.76628537]
[1644519702491,53.55105039,109.9,109.82,48.42478537]
[1644519703292,53.80105039,109.9,109.82,48.42478537]
[1644519704400,59.80105039,109.9,109.81,24.144]
[1644519704897,59.80105039,109.9,109.79,2.5783057]
[1644519705293,59.80105039,109.9,109.79,47.62058645]
[1644519705696,84.59975039,109.9,109.79,45.04228075]
[1644519705893,84.59975039,109.9,109.78,2.5783057]
[1644519706094,84.59975039,109.9,109.78,5.17862535]
[1644519706393,95.38975039,109.9,109.78,2.60031965]
[1644519706593,95.38975039,109.9,109.77,8.5783057]
[1644519706794,95.38975039,109.9,109.77,6.0]
[1644519707096,95.38975039,109.9,109.78,34.4813194]
[1644519708495,109.27805039,109.9,109.78,34.4813194]
[1644519708695,95.38975039,109.9,109.78,34.4813194]